Workbook

Sheet Rozpocet 2020
B1: 00298468 Město Štramberk | K1: 01.11.2019
B2: Náměstí 9 Štramberk | K2: 07:49:25
A3: NÁVRH ROZPOČTU 2020
A4: Podmínka: | B4: AND ORJ je mezi 11, 67
A5: ORJ | B5: ORG | C5: ODPA | D5: POL | E5: Popis | F5: Příjmy - UR | G5: Příjmy - Čerpání K 29.10.2019 | H5: Návrh rozpočtu 2020 - PŘÍJMY | I5: Č/UR% | J5: Výdaje - UR | K5: Výdaje - Čerpání K 29.10.2019 | L5: Návrh rozpočtu 2020 - VÝDAJE | M5: Č/UR% | N5: Od 01.01.2020 navýšeny tarify platů o 1500 Kč dle Nařízení vlády. Vzhledem k tomu, navýšeny mzdové náklady u všech ORG, ve kterých jsou obsaženy
A6: 11 | D6: 1111 | E6: Daň z příjmů fyzických osob placená plátci | F6: 12000000 | G6: 9797274.63 | H6: 13000000 | I6: 81.64395525 | J6: 0 | K6: 0 | M6: 0
A7: 11 | D7: 1112 | E7: Daň z příjmů fyzických osob placená poplatníky | F7: 300000 | G7: 214765.7 | H7: 250000 | I7: 71.58856667 | J7: 0 | K7: 0 | M7: 0
A8: 11 | D8: 1113 | E8: Daň z příjmů fyzických osob vybíraná srážkou | F8: 900000 | G8: 930160.86 | H8: 1090000 | I8: 103.3512067 | J8: 0 | K8: 0 | M8: 0
A9: 11 | D9: 1121 | E9: Daň z příjmů právnických osob | F9: 9500000 | G9: 8516792.05 | H9: 10200000 | I9: 89.65044263 | J9: 0 | K9: 0 | M9: 0
A10: 11 | D10: 1122 | E10: Daň z příjmů právnických osob za obce | F10: 1785810 | G10: 1785810 | I10: 100 | J10: 0 | K10: 0 | M10: 0
A11: 11 | D11: 1211 | E11: Daň z přidané hodnoty | F11: 23000000 | G11: 18531326.01 | H11: 25000000 | I11: 80.57098265 | J11: 0 | K11: 0 | M11: 0
A12: 11 | D12: 1334 | E12: Odvody za odnětí půdy ze zemědělského půdního fondu | F12: 3000 | G12: 2883.3 | H12: 3000 | I12: 96.11 | J12: 0 | K12: 0 | M12: 0
A13: 11 | D13: 1335 | E13: Poplatky za odnětí pozemků plnění funkcí lesa | F13: 1000 | G13: 0 | H13: 1000 | I13: 0 | J13: 0 | K13: 0 | M13: 0
A14: 11 | D14: 1340 | E14: Poplatek za likvidaci komunálního odpadu | F14: 1715000 | G14: 1641494.22 | H14: 1715000 | I14: 95.71394869 | J14: 0 | K14: 0 | M14: 0
A15: 11 | D15: 1341 | E15: Poplatek ze psů | F15: 105000 | G15: 97354 | H15: 105000 | I15: 92.71809524 | J15: 0 | K15: 0 | M15: 0
A16: 11 | D16: 1342 | E16: Poplatek za lázeňský nebo rekreační pobyt | F16: 70000 | G16: 103622 | I16: 148.0314286 | J16: 0 | K16: 0 | M16: 0
A17: 11 | D17: 1343 | E17: Poplatek za užívání veřejného prostranství | F17: 300000 | G17: 294705 | H17: 300000 | I17: 98.235 | J17: 0 | K17: 0 | M17: 0
A18: 11 | D18: 1345 | E18: Poplatek z ubytovací kapacity | F18: 73000 | G18: 97326 | I18: 133.3232877 | J18: 0 | K18: 0 | M18: 0
A19: 11 | D19: xxxx | E19: Poplatek z pobytu | F19: 0 | G19: 0 | H19: 300000 | J19: 0 | K19: 0 | M19: 0
A20: 11 | D20: 1381 | E20: Daň z hazardních her s výjimkou dílčí daně z technických her | F20: 203000 | G20: 204425.37 | H20: 250000 | I20: 100.7021527 | J20: 0 | K20: 0 | M20: 0
A21: 11 | D21: 1511 | E21: Daň z nemovitých věcí | F21: 3725000 | G21: 2920409.31 | H21: 3950000 | I21: 78.40024993 | J21: 0 | K21: 0 | M21: 0
A22: ORG | F22: 53680810 | G22: 45138348.45 | H22: =SUM(H6:H21) -> 56164000 | I22: 84.09 | J22: 0 | K22: 0 | M22: 0
A23: 11 | B23: 000001 | D23: 1361 | E23: Správní poplatky | F23: 40000 | G23: 38000 | H23: 40000 | I23: 95 | J23: 0 | K23: 0 | M23: 0
A24: ORG 000001 Sňatky (pol. 1361) | F24: 40000 | G24: 38000 | H24: =SUM(H23) -> 40000 | I24: 95 | J24: 0 | K24: 0 | M24: 0
A25: 11 | B25: 000002 | D25: 1361 | E25: Správní poplatky | F25: 3000 | G25: 3580 | H25: 3000 | I25: 119.3333333 | J25: 0 | K25: 0 | M25: 0
A26: ORG 000002 Trvalý pobyt (pol. 1361) | F26: 3000 | G26: 3580 | H26: =SUM(H25) -> 3000 | I26: 119.33 | J26: 0 | K26: 0 | M26: 0
A27: 11 | B27: 000003 | D27: 1361 | E27: Správní poplatky | F27: 10000 | G27: 9380 | H27: 10000 | I27: 93.8 | J27: 0 | K27: 0 | M27: 0
A28: ORG 000003 Ověřování listin a podpisů (pol. 1361) | F28: 10000 | G28: 9380 | H28: =SUM(H27) -> 10000 | I28: 93.8 | J28: 0 | K28: 0 | M28: 0
A29: 11 | B29: 000004 | D29: 1361 | E29: Správní poplatky | F29: 6000 | G29: 7270 | H29: 7000 | I29: 121.1666667 | J29: 0 | K29: 0 | M29: 0
A30: ORG 000004 CzechPOINT (pol. 1361) | F30: 6000 | G30: 7270 | H30: =SUM(H29) -> 7000 | I30: 121.17 | J30: 0 | K30: 0 | M30: 0
A31: 11 | B31: 000006 | D31: 1361 | E31: Správní poplatky | F31: 230000 | G31: 175861 | H31: 200000 | I31: 76.46130435 | J31: 0 | K31: 0 | M31: 0
A32: ORG 000006 Stav.povolení,kolaud.rozh. (pol. 1361) | F32: 230000 | G32: 175861 | H32: =SUM(H31) -> 200000 | I32: 76.46 | J32: 0 | K32: 0 | M32: 0
A33: 11 | B33: 000008 | D33: 1361 | E33: Správní poplatky | F33: 2000 | G33: 1000 | H33: 2000 | I33: 50 | J33: 0 | K33: 0 | M33: 0
A34: ORG 000008 Změna jména a příjmení (pol. 1361) | F34: 2000 | G34: 1000 | H34: =SUM(H33) -> 2000 | I34: 50 | J34: 0 | K34: 0 | M34: 0
A35: 11 | B35: 000009 | D35: 1361 | E35: Správní poplatky | F35: 1500 | G35: 990 | H35: 1000 | I35: 66 | J35: 0 | K35: 0 | M35: 0
A36: ORG 000009 Druhopisy matričních dokladů (pol. 1361) | F36: 1500 | G36: 990 | H36: =SUM(H35) -> 1000 | I36: 66 | J36: 0 | K36: 0 | M36: 0
A37: 11 | B37: 000010 | D37: 1361 | E37: Správní poplatky | F37: 1000 | G37: 600 | H37: 1000 | I37: 60 | J37: 0 | K37: 0 | M37: 0
A38: ORG 000010 Rušení údaje TP (pol. 1361) | F38: 1000 | G38: 600 | H38: =SUM(H37) -> 1000 | I38: 60 | J38: 0 | K38: 0 | M38: 0
A39: 11 | B39: 000011 | D39: 1361 | E39: Správní poplatky | F39: 2000 | G39: 0 | H39: 1000 | I39: 0 | J39: 0 | K39: 0 | M39: 0
A40: ORG 000011 Kolky - prodej pozemků (pol. 1361) | F40: 2000 | G40: 0 | H40: =SUM(H39) -> 1000 | I40: 0 | J40: 0 | K40: 0 | M40: 0
A41: 11 | B41: 000012 | D41: 1361 | E41: Správní poplatky | F41: 0 | G41: 50 | I41: 0 | J41: 0 | K41: 0 | M41: 0
A42: ORG 000012 Potvrzení z IS (pol. 1361) | F42: 0 | G42: 50 | H42: =SUM(H41) -> 0 | I42: 0 | J42: 0 | K42: 0 | M42: 0
A43: 11 | B43: 000013 | D43: 1361 | E43: Správní poplatky | F43: 500 | G43: 500 | H43: 500 | I43: 100 | J43: 0 | K43: 0 | M43: 0
A44: ORG 000013 Vysvědčení o PZ (pol. 1361) | F44: 500 | G44: 500 | H44: =SUM(H43) -> 500 | I44: 100 | J44: 0 | K44: 0 | M44: 0
A45: ORJ 11 Daně | F45: 53976810 | G45: 45375579.45 | H45: =SUM(H22,H24,H26,H28,H30,H32,H34,H36,H38,H40,H42,H44) -> 56429500 | I45: 84.06 | J45: 0 | K45: 0 | M45: 0 | N45: komentář
A46: 12 | D46: 4112 | E46: Neinvestiční přijaté transfery ze SR v rámci souhrnného dotačního vztahu | F46: 2183300 | G46: 1637475 | H46: 2150100 | I46: 75 | J46: 0 | K46: 0 | M46: 0
A47: ORJ 12 Dotace obcím (dotace v rámci souhr.dotačního vztahu) | F47: 2183300 | G47: 1637475 | H47: =SUM(H46) -> 2150100 | I47: 75 | J47: 0 | K47: 0 | M47: 0
A48: 20 | B48: 002000 | C48: 2119 | D48: 2324 | E48: Přijaté nekapitálové příspěvky a náhrady | F48: 280000 | G48: 280000 | H48: 300000 | I48: 100 | J48: 0 | K48: 0 | M48: 0
A49: 20 | B49: 002000 | C49: 2119 | D49: 2343 | E49: Příjmy z dobíhajících úhrad dobývacího prostoru a z vydobytých nerostů | F49: 4800631 | G49: 3710268.94 | H49: 4300000 | I49: 77.28710955 | J49: 0 | K49: 0 | M49: 0
A50: 20 | B50: 002000 | C50: 2119 | D50: 5494 | E50: Neinvestiční transfery obyvatelstvu nemající charakter daru | F50: 0 | G50: 0 | I50: 0 | J50: 500000 | K50: 0 | L50: 1080000 | M50: 0
A51: ORG 002000 Úhrady za dobývací činnost | F51: 5080631 | G51: 3990268.94 | H51: =SUM(H48:H49) -> 4600000 | I51: 78.54 | J51: 500000 | K51: 0 | L51: =SUM(L50) -> 1080000 | M51: 0 | N51: komentář
A52: 20 | B52: 002010 | C52: 3419 | D52: 5222 | E52: Neinvestiční transfery spolkům | F52: 0 | G52: 0 | I52: 0 | J52: 188000 | K52: 188000 | L52: 210000 | M52: 100
A53: ORG 002010 Příspěvky sportovním klubům | F53: 0 | G53: 0 | I53: 0 | J53: 188000 | K53: 188000 | L53: =SUM(L52) -> 210000 | M53: 100
A54: 20 | B54: 002020 | C54: 3429 | D54: 5222 | E54: Neinvestiční transfery spolkům | F54: 0 | G54: 0 | I54: 0 | J54: 183000 | K54: 183000 | L54: 210000 | M54: 100
A55: ORG 002020 Příspěvky spolkům - zájmová činnost | F55: 0 | G55: 0 | I55: 0 | J55: 183000 | K55: 183000 | L55: =SUM(L54) -> 210000 | M55: 100
A56: 20 | B56: 002021 | C56: 2143 | D56: 2321 | E56: Přijaté neinvestiční dary | F56: 45000 | G56: 43000 | I56: 95.55555556 | J56: 0 | K56: 0 | M56: 0
A57: 20 | B57: 002021 | C57: 2143 | D57: 5139 | E57: Nákup materiálu j.n. | F57: 0 | G57: 0 | I57: 0 | J57: 11100 | K57: 11076 | M57: 99.78378378
A58: 20 | B58: 002021 | C58: 2143 | D58: 5169 | E58: Nákup ostatních služeb | F58: 0 | G58: 0 | I58: 0 | J58: 50000 | K58: 49770 | L58: 40000 | M58: 99.54
A59: 20 | B59: 002021 | C59: 2143 | D59: 5175 | E59: Pohoštění | F59: 0 | G59: 0 | I59: 0 | J59: 3200 | K59: 3188 | M59: 99.625
A60: 20 | B60: 002021 | C60: 2143 | D60: 5222 | E60: Neinvestiční transfery spolkům | F60: 0 | G60: 0 | I60: 0 | J60: 40000 | K60: 37000 | L60: 40000 | M60: 92.5
A61: ORG 002021 Podpora marketingu akcí ve městě | F61: 45000 | G61: 43000 | H61: =SUM(H56) -> 0 | I61: 95.56 | J61: 104300 | K61: 101034 | L61: =SUM(L57:L60) -> 80000 | M61: 96.87
A62: 20 | B62: 002030 | C62: 3421 | D62: 5222 | E62: Neinvestiční transfery spolkům | F62: 0 | G62: 0 | I62: 0 | J62: 140000 | K62: 140000 | L62: 150000 | M62: 100
A63: ORG 002030 DDM-příspěvek | F63: 0 | G63: 0 | I63: 0 | J63: 140000 | K63: 140000 | L63: =SUM(L62) -> 150000 | M63: 100
A64: 20 | B64: 002040 | C64: 5311 | D64: 2212 | E64: Sankční platby přijaté od jiných subjektů | F64: 500 | G64: 500 | I64: 100 | J64: 0 | K64: 0 | M64: 0
A65: 20 | B65: 002040 | C65: 5311 | D65: 5321 | E65: Neinvestiční transfery obcím | F65: 0 | G65: 0 | I65: 0 | J65: 1960000 | K65: 1960000 | L65: 1960000 | M65: 100
A66: ORG 002040 Městská policie | F66: 500 | G66: 500 | H66: =SUM(H64) -> 0 | I66: 100 | J66: 1960000 | K66: 1960000 | L66: =SUM(L65) -> 1960000 | M66: 100
A67: 20 | B67: 002050 | D67: 4116 | E67: Ostatní neinvestiční přijaté transfery ze státního rozpočtu | F67: 216569 | G67: 150000 | H67: 150000 | I67: 69.2619904 | J67: 0 | K67: 0 | M67: 0
A68: 20 | B68: 002050 | D68: 4122 | E68: Neinvestiční přijaté transfery od krajů | F68: 50000 | G68: 50000 | H68: 50000 | I68: 100 | J68: 0 | K68: 0 | M68: 0
A69: 20 | B69: 002050 | C69: 5512 | D69: 2111 | E69: Příjmy z poskytování služeb a výrobků | F69: 12300 | G69: 12214 | I69: 99.30081301 | J69: 0 | K69: 0 | M69: 0
A70: 20 | B70: 002050 | C70: 5512 | D70: 5019 | E70: Ostatní platy | F70: 0 | G70: 0 | I70: 0 | J70: 1500 | K70: 0 | M70: 0
A71: 20 | B71: 002050 | C71: 5512 | D71: 5021 | E71: Ostatní osobní výdaje | F71: 0 | G71: 0 | I71: 0 | J71: 500000 | K71: 403020 | L71: 500000 | M71: 80.604
A72: 20 | B72: 002050 | C72: 5512 | D72: 5132 | E72: Ochranné pomůcky | F72: 0 | G72: 0 | I72: 0 | J72: 10000 | K72: 0 | M72: 0
A73: 20 | B73: 002050 | C73: 5512 | D73: 5134 | E73: Prádlo, oděv a obuv | F73: 0 | G73: 0 | I73: 0 | J73: 54000 | K73: 52373.73 | L73: 54000 | M73: 96.98838889
A74: 20 | B74: 002050 | C74: 5512 | D74: 5136 | E74: Knihy, učební pomůcky a tisk | F74: 0 | G74: 0 | I74: 0 | J74: 1000 | K74: 0 | L74: 1000 | M74: 0
A75: 20 | B75: 002050 | C75: 5512 | D75: 5137 | E75: Drobný hmotný dlouhodobý majetek | F75: 0 | G75: 0 | I75: 0 | J75: 61000 | K75: 60060.48 | L75: 60000 | M75: 98.45980328
A76: 20 | B76: 002050 | C76: 5512 | D76: 5139 | E76: Nákup materiálu j.n. | F76: 0 | G76: 0 | I76: 0 | J76: 12000 | K76: 3511.8 | L76: 12000 | M76: 29.265
A77: 20 | B77: 002050 | C77: 5512 | D77: 5151 | E77: Studená voda | F77: 0 | G77: 0 | I77: 0 | J77: 4000 | K77: 1442.24 | L77: 4000 | M77: 36.056
A78: 20 | B78: 002050 | C78: 5512 | D78: 5153 | E78: Plyn | F78: 0 | G78: 0 | I78: 0 | J78: 33000 | K78: 30872.05 | L78: 33000 | M78: 93.55166667
A79: 20 | B79: 002050 | C79: 5512 | D79: 5154 | E79: Elektrická energie | F79: 0 | G79: 0 | I79: 0 | J79: 15000 | K79: 6822 | L79: 15000 | M79: 45.48
A80: 20 | B80: 002050 | C80: 5512 | D80: 5156 | E80: Pohonné hmoty a maziva | F80: 0 | G80: 0 | I80: 0 | J80: 28000 | K80: 23482.93 | L80: 28000 | M80: 83.86760714
A81: 20 | B81: 002050 | C81: 5512 | D81: 5161 | E81: Poštovní služby | F81: 0 | G81: 0 | I81: 0 | J81: 200 | K81: 169.4 | L81: 200 | M81: 84.7
A82: 20 | B82: 002050 | C82: 5512 | D82: 5162 | E82: Služby elektronických komunikací | F82: 0 | G82: 0 | I82: 0 | J82: 1500 | K82: 1903 | L82: 2000 | M82: 126.8666667
A83: 20 | B83: 002050 | C83: 5512 | D83: 5164 | E83: Nájemné | F83: 0 | G83: 0 | I83: 0 | J83: 1000 | K83: 968 | L83: 1000 | M83: 96.8
A84: 20 | B84: 002050 | C84: 5512 | D84: 5167 | E84: Služby školení a vzdělávání | F84: 0 | G84: 0 | I84: 0 | J84: 24800 | K84: 22920 | L84: 24000 | M84: 92.41935484
A85: 20 | B85: 002050 | C85: 5512 | D85: 5169 | E85: Nákup ostatních služeb | F85: 0 | G85: 0 | I85: 0 | J85: 5200 | K85: 5141.4 | L85: 5000 | M85: 98.87307692
A86: 20 | B86: 002050 | C86: 5512 | D86: 5171 | E86: Opravy a udržování | F86: 0 | G86: 0 | I86: 0 | J86: 141500 | K86: 140985.23 | L86: 100000 | M86: 99.63620495
A87: ORG 002050 JPO II | F87: 278869 | G87: 212214 | H87: =SUM(H67:H69) -> 200000 | I87: 76.1 | J87: 893700 | K87: 753672.26 | L87: =SUM(L71:L86) -> 839200 | M87: 84.33
A88: ORJ 20 Starosta | F88: 5405000 | G88: 4245982.94 | H88: =SUM(H51,H53,H55,H61,H63,H66,H87) -> 4800000 | I88: 78.56 | J88: 3969000 | K88: 3325706.26 | L88: =SUM(L51,L53,L55,L61,L63,L66,L87) -> 4529200 | M88: 83.79
A89: 21 | B89: 002110 | C89: 5212 | D89: 5139 | E89: Nákup materiálu j.n. | F89: 0 | G89: 0 | I89: 0 | J89: 1000 | K89: 0 | L89: 1000 | M89: 0
A90: 21 | B90: 002110 | C90: 5212 | D90: 5171 | E90: Opravy a udržování | F90: 0 | G90: 0 | J90: 0 | K90: 0 | L90: 5000 | M90: 0
A91: ORG 002110 Civilní obrana | F91: 0 | G91: 0 | I91: 0 | J91: 1000 | K91: 0 | L91: =SUM(L89:L90) -> 6000 | M91: 0
A92: 21 | B92: 002120 | C92: 6171 | D92: 5139 | E92: Nákup materiálu j.n. | F92: 0 | G92: 0 | I92: 0 | J92: 16000 | K92: 10470 | L92: 14000 | M92: 65.4375
A93: 21 | B93: 002120 | C93: 6171 | D93: 5175 | E93: Pohoštění | F93: 0 | G93: 0 | I93: 0 | J93: 20000 | K93: 14069 | L93: 20000 | M93: 70.345
A94: 21 | B94: 002120 | C94: 6171 | D94: 5194 | E94: Věcné dary | F94: 0 | G94: 0 | I94: 0 | J94: 4000 | K94: 5224 | L94: 6000 | M94: 130.6
A95: ORG 002120 Reprefond | F95: 0 | G95: 0 | I95: 0 | J95: 40000 | K95: 29763 | L95: =SUM(L92:L94) -> 40000 | M95: 74.41
A96: ORJ 21 Sekretariát starosty | F96: 0 | G96: 0 | H96: =SUM(H91,H95) -> 0 | I96: 0 | J96: 41000 | K96: 29763 | L96: =SUM(L91,L95) -> 46000 | M96: 72.59
A97: 22 | B97: 002330 | C97: 3349 | D97: 2111 | E97: Příjmy z poskytování služeb a výrobků | F97: 20000 | G97: 14082 | H97: 18000 | I97: 70.41 | J97: 0 | K97: 0 | M97: 0
A98: 22 | B98: 002330 | C98: 3349 | D98: 2119 | E98: Ostatní příjmy z vlastní činnosti | F98: 2000 | G98: 0 | H98: 2000 | I98: 0 | J98: 0 | K98: 0 | M98: 0
A99: 22 | B99: 002330 | C99: 3349 | D99: 5021 | E99: Ostatní osobní výdaje | F99: 0 | G99: 0 | I99: 0 | J99: 11000 | K99: 10800 | L99: 13000 | M99: 98.18181818
A100: 22 | B100: 002330 | C100: 3349 | D100: 5169 | E100: Nákup ostatních služeb | F100: 0 | G100: 0 | I100: 0 | J100: 226000 | K100: 205166.22 | L100: 205000 | M100: 90.78151327
A101: ORG 002330 Štramberské novinky | F101: 22000 | G101: 14082 | H101: =SUM(H97:H98) -> 20000 | I101: 64.01 | J101: 237000 | K101: 215966.22 | L101: =SUM(L99:L100) -> 218000 | M101: 91.12
A102: ORJ 22 Média a technika | F102: 22000 | G102: 14082 | H102: =SUM(H101) -> 20000 | I102: 64.01 | J102: 237000 | K102: 215966.22 | L102: =SUM(L101) -> 218000 | M102: 91.12
A103: 23 | B103: 002310 | C103: 2141 | D103: 2111 | E103: Příjmy z poskytování služeb a výrobků | F103: 500 | G103: 422 | H103: 500 | I103: 84.4 | J103: 0 | K103: 0 | M103: 0
A104: 23 | B104: 002310 | C104: 2141 | D104: 2112 | E104: Příjmy z prodeje zboží (již nakoupeného za účelem prodeje) | F104: 90000 | G104: 115435 | H104: 110000 | I104: 128.2611111 | J104: 0 | K104: 0 | M104: 0
A105: 23 | B105: 002310 | C105: 2141 | D105: 2324 | E105: Přijaté nekapitálové příspěvky a náhrady | F105: 7200 | G105: 7200 | I105: 100 | J105: 0 | K105: 0 | M105: 0
A106: 23 | B106: 002310 | C106: 2141 | D106: 5011 | E106: Platy zaměstnanců v pracovním poměru | F106: 0 | G106: 0 | I106: 0 | J106: 390000 | K106: 328037 | L106: 432000 | M106: 84.11205128
A107: 23 | B107: 002310 | C107: 2141 | D107: 5021 | E107: Ostatní osobní výdaje | F107: 0 | G107: 0 | I107: 0 | J107: 60000 | K107: 15030 | L107: 50000 | M107: 25.05
A108: 23 | B108: 002310 | C108: 2141 | D108: 5031 | E108: Povinné pojistné na sociální zabezpečení a příspěvek na státní politiku zamě | F108: 0 | G108: 0 | I108: 0 | J108: 101000 | K108: 81814 | L108: 108000 | M108: 81.0039604
A109: 23 | B109: 002310 | C109: 2141 | D109: 5032 | E109: Povinné pojištění na veřejné zdravotní pojištění | F109: 0 | G109: 0 | I109: 0 | J109: 37000 | K109: 29524 | L109: 39000 | M109: 79.79459459
A110: 23 | B110: 002310 | C110: 2141 | D110: 5137 | E110: Drobný hmotný dlouhodobý majetek | F110: 0 | G110: 0 | I110: 0 | J110: 69800 | K110: 49658 | L110: 80000 | M110: 71.14326648
A111: 23 | B111: 002310 | C111: 2141 | D111: 5138 | E111: Nákup zboží (za účelem dalšího prodeje) | F111: 0 | G111: 0 | I111: 0 | J111: 90000 | K111: 103476.18 | L111: 100000 | M111: 114.9735333
A112: 23 | B112: 002310 | C112: 2141 | D112: 5139 | E112: Nákup materiálu j.n. | F112: 0 | G112: 0 | I112: 0 | J112: 12200 | K112: 24933 | L112: 20000 | M112: 204.3688525
A113: 23 | B113: 002310 | C113: 2141 | D113: 5152 | E113: Teplo | F113: 0 | G113: 0 | I113: 0 | J113: 4000 | K113: 0 | L113: 4000 | M113: 0
A114: 23 | B114: 002310 | C114: 2141 | D114: 5162 | E114: Služby elektronických komunikací | F114: 0 | G114: 0 | I114: 0 | J114: 1600 | K114: 1069 | L114: 1600 | M114: 66.8125
A115: 23 | B115: 002310 | C115: 2141 | D115: 5167 | E115: Služby školení a vzdělávání | F115: 0 | G115: 0 | I115: 0 | J115: 6000 | K115: 3660 | L115: 10000 | M115: 61
A116: 23 | B116: 002310 | C116: 2141 | D116: 5169 | E116: Nákup ostatních služeb | F116: 0 | G116: 0 | I116: 0 | J116: 25000 | K116: 110 | L116: 20000 | M116: 0.44
A117: 23 | B117: 002310 | C117: 2141 | D117: 5171 | E117: Opravy a udržování | F117: 0 | G117: 0 | I117: 0 | J117: 7000 | K117: 4017 | L117: 5000 | M117: 57.38571429
A118: 23 | B118: 002310 | C118: 2141 | D118: 5173 | E118: Cestovné | F118: 0 | G118: 0 | I118: 0 | J118: 1000 | K118: 494 | L118: 1000 | M118: 49.4
A119: 23 | B119: 002310 | C119: 2141 | D119: 5175 | E119: Pohoštění | F119: 0 | G119: 0 | I119: 0 | J119: 400 | K119: 590 | L119: 500 | M119: 147.5
A120: 23 | B120: 002310 | C120: 2141 | D120: 5179 | E120: Ostatní nákupy jinde nezařazené | F120: 0 | G120: 0 | I120: 0 | J120: 5000 | K120: 4000 | L120: 5000 | M120: 80
A121: 23 | B121: 002310 | C121: 2141 | D121: 6122 | E121: Stroje, přístroje a zařízení | F121: 0 | G121: 0 | I121: 0 | J121: 54200 | K121: 54160 | L121: 120000 | M121: 99.92619926 | N121: inf.kiosek
A122: ORG 002310 MIC (Městské informační centrum) | F122: 97700 | G122: 123057 | H122: =SUM(H103:H105) -> 110500 | I122: 125.95 | J122: 864200 | K122: 700572.18 | L122: =SUM(L106:L121) -> 996100 | M122: 81.07 | N122: komentář
A123: 23 | B123: 002312 | D123: 4122 | E123: Neinvestiční přijaté transfery od krajů | F123: 120000 | G123: 60000 | I123: 50 | J123: 0 | K123: 0 | M123: 0
A124: 23 | B124: 002312 | C124: 2141 | D124: 5137 | E124: Drobný hmotný dlouhodobý majetek | F124: 0 | G124: 0 | I124: 0 | J124: 40000 | K124: 39930 | M124: 99.825
A125: 23 | B125: 002312 | C125: 2141 | D125: 5139 | E125: Nákup materiálu j.n. | F125: 0 | G125: 0 | I125: 0 | J125: 30000 | K125: 30032.2 | M125: 100.1073333
A126: 23 | B126: 002312 | C126: 2141 | D126: 5167 | E126: Služby školení a vzdělávání | F126: 0 | G126: 0 | I126: 0 | J126: 10000 | K126: 10000 | M126: 100
A127: 23 | B127: 002312 | C127: 2141 | D127: 5169 | E127: Nákup ostatních služeb | F127: 0 | G127: 0 | I127: 0 | J127: 72800 | K127: 72834 | M127: 100.0467033
A128: ORG 002312 MIC-dotace (TIC) | F128: 120000 | G128: 60000 | H128: =SUM(H123) -> 0 | I128: 50 | J128: 152800 | K128: 152796.2 | L128: =SUM(L124:L127) -> 0 | M128: 100
A129: 23 | B129: 002320 | C129: 2143 | D129: 5021 | E129: Ostatní osobní výdaje | F129: 0 | G129: 0 | I129: 0 | J129: 5000 | K129: 5000 | L129: 5000 | M129: 100
A130: 23 | B130: 002320 | C130: 2143 | D130: 5137 | E130: Drobný hmotný dlouhodobý majetek | F130: 0 | G130: 0 | I130: 0 | J130: 5000 | K130: 0 | L130: 20000 | M130: 0
A131: 23 | B131: 002320 | C131: 2143 | D131: 5139 | E131: Nákup materiálu j.n. | F131: 0 | G131: 0 | I131: 0 | J131: 145000 | K131: 49488.95 | L131: 150000 | M131: 34.13031034
A132: 23 | B132: 002320 | C132: 2143 | D132: 5162 | E132: Služby elektronických komunikací | F132: 0 | G132: 0 | I132: 0 | J132: 8000 | K132: 6395 | L132: 8000 | M132: 79.9375
A133: 23 | B133: 002320 | C133: 2143 | D133: 5169 | E133: Nákup ostatních služeb | F133: 0 | G133: 0 | I133: 0 | J133: 174000 | K133: 173373.78 | L133: 311000 | M133: 99.64010345
A134: 23 | B134: 002320 | C134: 2143 | D134: 5171 | E134: Opravy a udržování | F134: 0 | G134: 0 | I134: 0 | J134: 6000 | K134: 5712 | L134: 6000 | M134: 95.2
A135: ORG 002320 Propagace | F135: 0 | G135: 0 | I135: 0 | J135: 343000 | K135: 239969.73 | L135: =SUM(L129:L134) -> 500000 | M135: 69.96 | N135: komentář
A136: 23 | B136: 002470 | C136: 3315 | D136: 2111 | E136: Příjmy z poskytování služeb a výrobků | F136: 150000 | G136: 180370 | H136: 170000 | I136: 120.2466667 | J136: 0 | K136: 0 | M136: 0
A137: 23 | B137: 002470 | C137: 3315 | D137: 2112 | E137: Příjmy z prodeje zboží (již nakoupeného za účelem prodeje) | F137: 75000 | G137: 85139 | H137: 135000 | I137: 113.5186667 | J137: 0 | K137: 0 | M137: 0
A138: 23 | B138: 002470 | C138: 3315 | D138: 5011 | E138: Platy zaměstnanců v pracovním poměru | F138: 0 | G138: 0 | I138: 0 | J138: 536000 | K138: 456539 | L138: 464000 | M138: 85.17518657
A139: 23 | B139: 002470 | C139: 3315 | D139: 5021 | E139: Ostatní osobní výdaje | F139: 0 | G139: 0 | I139: 0 | J139: 52000 | K139: 18765 | L139: 50000 | M139: 36.08653846
A140: 23 | B140: 002470 | C140: 3315 | D140: 5031 | E140: Povinné pojistné na sociální zabezpečení a příspěvek na státní politiku zamě | F140: 0 | G140: 0 | I140: 0 | J140: 134500 | K140: 113915 | L140: 116000 | M140: 84.69516729
A141: 23 | B141: 002470 | C141: 3315 | D141: 5032 | E141: Povinné pojištění na veřejné zdravotní pojištění | F141: 0 | G141: 0 | I141: 0 | J141: 50000 | K141: 41089 | L141: 42000 | M141: 82.178
A142: 23 | B142: 002470 | C142: 3315 | D142: 5136 | E142: Knihy, učební pomůcky a tisk | F142: 0 | G142: 0 | I142: 0 | J142: 1000 | K142: 0 | L142: 1000 | M142: 0
A143: 23 | B143: 002470 | C143: 3315 | D143: 5137 | E143: Drobný hmotný dlouhodobý majetek | F143: 0 | G143: 0 | I143: 0 | J143: 55000 | K143: 52960 | L143: 100000 | M143: 96.29090909
A144: 23 | B144: 002470 | C144: 3315 | D144: 5138 | E144: Nákup zboží (za účelem dalšího prodeje) | F144: 0 | G144: 0 | I144: 0 | J144: 59000 | K144: 49429 | L144: 120000 | M144: 83.7779661
A145: 23 | B145: 002470 | C145: 3315 | D145: 5139 | E145: Nákup materiálu j.n. | F145: 0 | G145: 0 | I145: 0 | J145: 10000 | K145: 3260 | L145: 10000 | M145: 32.6
A146: 23 | B146: 002470 | C146: 3315 | D146: 5151 | E146: Studená voda | F146: 0 | G146: 0 | I146: 0 | J146: 11000 | K146: 8856.32 | L146: 11000 | M146: 80.512
A147: 23 | B147: 002470 | C147: 3315 | D147: 5154 | E147: Elektrická energie | F147: 0 | G147: 0 | I147: 0 | J147: 225000 | K147: 193586 | L147: 220000 | M147: 86.03822222
A148: 23 | B148: 002470 | C148: 3315 | D148: 5162 | E148: Služby elektronických komunikací | F148: 0 | G148: 0 | I148: 0 | J148: 4000 | K148: 3691.5 | L148: 4500 | M148: 92.2875
A149: 23 | B149: 002470 | C149: 3315 | D149: 5163 | E149: Služby peněžních ústavů | F149: 0 | G149: 0 | I149: 0 | J149: 15300 | K149: 15288 | L149: 30000 | M149: 99.92156863
A150: 23 | B150: 002470 | C150: 3315 | D150: 5169 | E150: Nákup ostatních služeb | F150: 0 | G150: 0 | I150: 0 | J150: 45000 | K150: 48756 | L150: 45000 | M150: 108.3466667
A151: 23 | B151: 002470 | C151: 3315 | D151: 5171 | E151: Opravy a udržování | F151: 0 | G151: 0 | I151: 0 | J151: 81000 | K151: 56201.16 | L151: 80000 | M151: 69.38414815
A152: 23 | B152: 002470 | C152: 3315 | D152: 5173 | E152: Cestovné | F152: 0 | G152: 0 | I152: 0 | J152: 7000 | K152: 5214 | L152: 10000 | M152: 74.48571429
A153: 23 | B153: 002470 | C153: 3315 | D153: 5175 | E153: Pohoštění | F153: 0 | G153: 0 | I153: 0 | J153: 5000 | K153: 0 | L153: 5000 | M153: 0
A154: 23 | B154: 002470 | C154: 3315 | D154: 6122 | E154: Stroje, přístroje a zařízení | F154: 0 | G154: 0 | I154: 0 | J154: 130200 | K154: 130139 | L154: 400000 | M154: 99.953149
A155: ORG 002470 Muzeum Zdeňka Buriana | F155: 225000 | G155: 265509 | H155: =SUM(H136:H137) -> 305000 | I155: 118 | J155: 1421000 | K155: 1197688.98 | L155: =SUM(L138:L154) -> 1708500 | M155: 84.28 | N155: komentář
A156: 23 | B156: 002600 | C156: 3321 | D156: 2111 | E156: Příjmy z poskytování služeb a výrobků | F156: 2100000 | G156: 2094980 | H156: 2100000 | I156: 99.76095238 | J156: 0 | K156: 0 | M156: 0
A157: 23 | B157: 002600 | C157: 3321 | D157: 2112 | E157: Příjmy z prodeje zboží (již nakoupeného za účelem prodeje) | F157: 150000 | G157: 134495 | H157: 150000 | I157: 89.66333333 | J157: 0 | K157: 0 | M157: 0
A158: 23 | B158: 002600 | C158: 3321 | D158: 5011 | E158: Platy zaměstnanců v pracovním poměru | F158: 0 | G158: 0 | I158: 0 | J158: 359000 | K158: 286066 | L158: 516000 | M158: 79.68412256
A159: 23 | B159: 002600 | C159: 3321 | D159: 5021 | E159: Ostatní osobní výdaje | F159: 0 | G159: 0 | I159: 0 | J159: 75000 | K159: 72360 | L159: 90000 | M159: 96.48
A160: 23 | B160: 002600 | C160: 3321 | D160: 5031 | E160: Povinné pojistné na sociální zabezpečení a příspěvek na státní politiku zamě | F160: 0 | G160: 0 | I160: 0 | J160: 73500 | K160: 71326 | L160: 129000 | M160: 97.04217687
A161: 23 | B161: 002600 | C161: 3321 | D161: 5032 | E161: Povinné pojištění na veřejné zdravotní pojištění | F161: 0 | G161: 0 | I161: 0 | J161: 27000 | K161: 25777 | L161: 47000 | M161: 95.47037037
A162: 23 | B162: 002600 | C162: 3321 | D162: 5137 | E162: Drobný hmotný dlouhodobý majetek | F162: 0 | G162: 0 | I162: 0 | J162: 45000 | K162: 8008 | L162: 70000 | M162: 17.79555556
A163: 23 | B163: 002600 | C163: 3321 | D163: 5138 | E163: Nákup zboží (za účelem dalšího prodeje) | F163: 0 | G163: 0 | I163: 0 | J163: 120000 | K163: 133647.82 | L163: 140000 | M163: 111.3731833
A164: 23 | B164: 002600 | C164: 3321 | D164: 5139 | E164: Nákup materiálu j.n. | F164: 0 | G164: 0 | I164: 0 | J164: 25000 | K164: 15584 | L164: 40000 | M164: 62.336
A165: 23 | B165: 002600 | C165: 3321 | D165: 5151 | E165: Studená voda | F165: 0 | G165: 0 | I165: 0 | J165: 25000 | K165: 18654.22 | L165: 25000 | M165: 74.61688
A166: 23 | B166: 002600 | C166: 3321 | D166: 5154 | E166: Elektrická energie | F166: 0 | G166: 0 | I166: 0 | J166: 116000 | K166: 96306 | L166: 116000 | M166: 83.02241379
A167: 23 | B167: 002600 | C167: 3321 | D167: 5161 | E167: Poštovní služby | F167: 0 | G167: 0 | I167: 0 | J167: 150 | K167: 150 | L167: 150 | M167: 100
A168: 23 | B168: 002600 | C168: 3321 | D168: 5162 | E168: Služby elektronických komunikací | F168: 0 | G168: 0 | I168: 0 | J168: 4850 | K168: 3826 | L168: 4850 | M168: 78.88659794
A169: 23 | B169: 002600 | C169: 3321 | D169: 5169 | E169: Nákup ostatních služeb | F169: 0 | G169: 0 | I169: 0 | J169: 105000 | K169: 73447.9 | L169: 100000 | M169: 69.95038095
A170: 23 | B170: 002600 | C170: 3321 | D170: 5171 | E170: Opravy a udržování | F170: 0 | G170: 0 | I170: 0 | J170: 20000 | K170: 20480.9 | L170: 20000 | M170: 102.4045
A171: 23 | B171: 002600 | C171: 3321 | D171: 5173 | E171: Cestovné | F171: 0 | G171: 0 | I171: 0 | J171: 0 | K171: 0 | M171: 0
A172: 23 | B172: 002600 | C172: 3321 | D172: 5424 | E172: Náhrady mezd v době nemoci | F172: 0 | G172: 0 | I172: 0 | J172: 0 | K172: 2913 | M172: 0
A173: ORG 002600 Trúba | F173: 2250000 | G173: 2229475 | H173: =SUM(H156:H157) -> 2250000 | I173: 99.09 | J173: 995500 | K173: 828546.84 | L173: =SUM(L158:L172) -> 1298000 | M173: 83.23
A174: ORJ 23 Cestovní ruch | F174: 2692700 | G174: 2678041 | H174: =SUM(H122,H128,H135,H155,H173) -> 2665500 | I174: 99.46 | J174: 3776500 | K174: 3119573.93 | L174: =SUM(L122,L128,L135,L155,L173) -> 4502600 | M174: 82.6
A175: 24 | B175: 002450 | C175: 3313 | D175: 2111 | E175: Příjmy z poskytování služeb a výrobků | F175: 55000 | G175: 68430 | H175: 60000 | I175: 124.4181818 | J175: 0 | K175: 0 | M175: 0
A176: 24 | B176: 002450 | C176: 3313 | D176: 5021 | E176: Ostatní osobní výdaje | F176: 0 | G176: 0 | I176: 0 | J176: 76000 | K176: 55855 | L176: 76000 | M176: 73.49342105
A177: 24 | B177: 002450 | C177: 3313 | D177: 5031 | E177: Povinné pojistné na sociální zabezpečení a příspěvek na státní politiku zamě | F177: 0 | G177: 0 | I177: 0 | J177: 500 | K177: 0 | L177: 0 | M177: 0
A178: 24 | B178: 002450 | C178: 3313 | D178: 5032 | E178: Povinné pojištění na veřejné zdravotní pojištění | F178: 0 | G178: 0 | I178: 0 | J178: 500 | K178: 0 | L178: 0 | M178: 0
A179: 24 | B179: 002450 | C179: 3313 | D179: 5041 | E179: Odměny za užití duševního vlastnictví | F179: 0 | G179: 0 | I179: 0 | J179: 1000 | K179: 776 | L179: 1000 | M179: 77.6
A180: 24 | B180: 002450 | C180: 3313 | D180: 5137 | E180: Drobný hmotný dlouhodobý majetek | F180: 0 | G180: 0 | I180: 0 | J180: 15000 | K180: 8990 | L180: 15000 | M180: 59.93333333
A181: 24 | B181: 002450 | C181: 3313 | D181: 5139 | E181: Nákup materiálu j.n. | F181: 0 | G181: 0 | I181: 0 | J181: 5000 | K181: 5686 | L181: 5000 | M181: 113.72
A182: 24 | B182: 002450 | C182: 3313 | D182: 5162 | E182: Služby elektronických komunikací | F182: 0 | G182: 0 | I182: 0 | J182: 500 | K182: 235 | L182: 500 | M182: 47
A183: 24 | B183: 002450 | C183: 3313 | D183: 5169 | E183: Nákup ostatních služeb | F183: 0 | G183: 0 | I183: 0 | J183: 114000 | K183: 110993.43 | L183: 114000 | M183: 97.36265789
A184: 24 | B184: 002450 | C184: 3313 | D184: 5171 | E184: Opravy a udržování | F184: 0 | G184: 0 | I184: 0 | J184: 20000 | K184: 0 | L184: 20000 | M184: 0
A185: 24 | B185: 002450 | C185: 3313 | D185: 6122 | E185: Stroje, přístroje a zařízení | F185: 0 | G185: 0 | I185: 0 | J185: 20000 | K185: 0 | L185: 80000 | M185: 0
A186: ORG 002450 Kino | F186: 55000 | G186: 68430 | H186: =SUM(H175) -> 60000 | I186: 124.42 | J186: 232500 | K186: 182535.43 | L186: =SUM(L176:L185) -> 311500 | M186: 78.51 | N186: komentář
A187: 24 | B187: 002460 | C187: 3314 | D187: 2111 | E187: Příjmy z poskytování služeb a výrobků | F187: 16800 | G187: 17461 | H187: 17000 | I187: 103.9345238 | J187: 0 | K187: 0 | M187: 0
A188: 24 | B188: 002460 | C188: 3314 | D188: 5011 | E188: Platy zaměstnanců v pracovním poměru | F188: 0 | G188: 0 | I188: 0 | J188: 344000 | K188: 259183 | L188: 368000 | M188: 75.34389535
A189: 24 | B189: 002460 | C189: 3314 | D189: 5031 | E189: Povinné pojistné na sociální zabezpečení a příspěvek na státní politiku zamě | F189: 0 | G189: 0 | I189: 0 | J189: 88000 | K189: 65396 | L189: 92000 | M189: 74.31363636
A190: 24 | B190: 002460 | C190: 3314 | D190: 5032 | E190: Povinné pojištění na veřejné zdravotní pojištění | F190: 0 | G190: 0 | I190: 0 | J190: 32000 | K190: 23596 | L190: 34000 | M190: 73.7375
A191: 24 | B191: 002460 | C191: 3314 | D191: 5136 | E191: Knihy, učební pomůcky a tisk | F191: 0 | G191: 0 | I191: 0 | J191: 100000 | K191: 99874 | L191: 105000 | M191: 99.874
A192: 24 | B192: 002460 | C192: 3314 | D192: 5137 | E192: Drobný hmotný dlouhodobý majetek | F192: 0 | G192: 0 | I192: 0 | J192: 10000 | K192: 0 | L192: 10000 | M192: 0
A193: 24 | B193: 002460 | C193: 3314 | D193: 5139 | E193: Nákup materiálu j.n. | F193: 0 | G193: 0 | I193: 0 | J193: 20000 | K193: 15384 | L193: 20000 | M193: 76.92
A194: 24 | B194: 002460 | C194: 3314 | D194: 5162 | E194: Služby elektronických komunikací | F194: 0 | G194: 0 | I194: 0 | J194: 5000 | K194: 3025 | L194: 5000 | M194: 60.5
A195: 24 | B195: 002460 | C195: 3314 | D195: 5167 | E195: Služby školení a vzdělávání | F195: 0 | G195: 0 | I195: 0 | J195: 2500 | K195: 0 | L195: 2500 | M195: 0
A196: 24 | B196: 002460 | C196: 3314 | D196: 5169 | E196: Nákup ostatních služeb | F196: 0 | G196: 0 | I196: 0 | J196: 65000 | K196: 18752 | L196: 40000 | M196: 28.84923077
A197: 24 | B197: 002460 | C197: 3314 | D197: 5171 | E197: Opravy a udržování | F197: 0 | G197: 0 | I197: 0 | J197: 20000 | K197: 0 | L197: 20000 | M197: 0
A198: 24 | B198: 002460 | C198: 3314 | D198: 5172 | E198: Programové vybavení | F198: 0 | G198: 0 | I198: 0 | J198: 0 | K198: 0 | L198: 36000
A199: 24 | B199: 002460 | C199: 3314 | D199: 5173 | E199: Cestovné | F199: 0 | G199: 0 | I199: 0 | J199: 2500 | K199: 663 | L199: 2500 | M199: 26.52
A200: 24 | B200: 002460 | C200: 3314 | D200: 5175 | E200: Pohoštění | F200: 0 | G200: 0 | I200: 0 | J200: 2000 | K200: 1071 | L200: 2000 | M200: 53.55
... 656 more rows

Sheet Parkovne (hidden)
A1: ORG 003523 Parkovné
G3: Zpět na seznam rozpočtu
A6: Komentář
A7: Výdaje | B7: pol. 5171 - oprava parkovacího automatu u Očního, který byl zničen při pokusu o vloupání. Řešila policie ČR.
A8: Příjmy | B8: Pojistná náhrada

Sheet CharitaKoprivnice (hidden)
A1: ORG 006230 Charita Kopřivnice
G3: Zpět na seznam rozpočtu
A6: Komentář
A7: Výdaje | B7: Charita Kopřivnice - poskytování sociálních služeb 100.000,- Kč + poskytování komerčních služeb 200.000,- Kč (+50.000 Kč stará smlouva)

Sheet UvolneniZastupitele (hidden)
A1: ORG 006020 Uvolnění zastupitelé
G3: Zpět na seznam rozpočtu
A6: Komentář
A7: Výdaje | B7: pol. 5023 - Navýšení odměn uvolněných funkcionářů dle Nařízení vlády o 10%

Sheet Dane (hidden)
A1: ORJ 11 Daně
G3: Zpět na seznam rozpočtu
A6: Komentář

Sheet NakladaniKomOdpad (hidden)
A1: ORG 006600 Nakládání s komunálním odpadem
G3: Zpět na seznam rozpočtu
B6: Komentář
A7: Výdaje | B7: pol. 5169 - od 1.1.2020 navýšena cena skládkovného

Sheet ZSStramberk (hidden)
A1: ORG 006430 ZŠ Štramberk
G3: Zpět na seznam rozpočtu
B6: Komentář
A7: Výdaje | B7: pol. 5331 - 2.380.000 Kč požadavek školy na provoz - na základě doporučení FV sníženo na stejnou úroveň jako v roce 2019 tj. 2.293.000 Kč, 130.000 Kč na aktivity školy, 175.000 Kč na pracovní sešity a obyčejné sešity, 135.000 Kč na výkresy a výtvarné potřeby

Sheet FinOddeleni (hidden)
A1: ORG 006501 Finanční oddělení
G3: Zpět na seznam rozpočtu
A6: Datum | B6: Komentář
A7: Výdaje | B7: mzdové náklady na mzdovou účtetní přesunuty z ORG 6501 na 6401

Sheet SocPrestupky (hidden)
A1: ORG 006201 Úsek soc.věcí a přestupků
G3: Zpět na seznam rozpočtu
A6: Datum | B6: Komentář
A7: Výdaje | B7: V roce 2019 dlouhodobá nemocenská, nový nástup 6/2019, předseda přestupkové komise - jen poměrnou část roku 2019

Sheet SocialniFond (hidden)
A1: ORG 006120 Sociální fond
G3: Zpět na seznam rozpočtu
A6: Datum | B6: Komentář
A7: Výdaje | B7: Navýšení hodnoty stravného (stravenek) na 100 Kč (30 Kč zaměstnanec, 38 Kč zaměstnavatel, 32 Kč Sociální fond)

Sheet CinnostMistniSpravy (hidden)
A1: ORG 006040 Činnost místní správy
G3: Zpět na seznam rozpočtu
A6: Datum | B6: Komentář
A7: Výdaje | B7: mzdové náklady mzdové účetní přesunuty z ORG 6501 na 6040, pořízení antiviru

Sheet VolbyReferendum (hidden)
A1: ORG 006030 Volby, referendum
G3: Zpět na seznam rozpočtu
B6: Komentář
A7: Výdaje | B7: Nespotřebovaný příspěvek na volby z letošního roku se vrací až násleldující rok v rámci vyúčtování se SR

Sheet DPS (hidden)
A1: ORG 006002 Dům s pečovatelskou službou
G3: Zpět na seznam rozpočtu
B6: Komentář
A7: Výdaje | B7: pol. 5011 - plat za 12/2019 a 3 měsíce odstupné, pol. 5021 - úklid společných prostor

Sheet BytovaSprava (hidden)
A1: ORG 003730 Bytová správa
G3: Zpět na seznam rozpočtu
B6: Komentář
A7: Výdaje | B7: pol. 5171 - rekonstrukce elektroinstalace sklepních prostor u všech bytových domů

Sheet DomyMajMesta (hidden)
A1: ORG 003720 Domy v majetku města
G3: Zpět na seznam rozpočtu
B6: Komentář
A7: Výdaje | B7: Dům služeb - výměna dveří v interiéru, podlahová krytina na chodbě, Sokolovna - úprava chodníkového tělesa před vstupem, zaslepení staré jímky, předlažba, výměna otvorových výplní (5x velká okna + malá okna v šatnách, ve sprchách a v toaletách), Pošta - dokončení výměny malých oken, Chata Dr. Hrstky - výměna vstupních dveří a repase stávajících otvorových výplní, + neplánované opravy a údržba

Sheet SbernyDvur (hidden)
A1: ORG 003555 Sběrný dvůr - provoz
G3: Zpět na seznam rozpočtu
B6: Komentář
A7: Výdaje | B7: pol. 6122 - pořízení 2 nových kontjnerů

Sheet VerOsvetleni (hidden)
A1: ORG 003552 Veřejné osvětlení
G3: Zpět na seznam rozpočtu
B6: Komentář
A7: Výdaje | B7: pol. 5171 - rekonstrukce obvodů VO ul. Dolní 300 tis.Kč, ul. Drážné 200 tis.Kč

Sheet FotbaloveHriste (hidden)
A1: ORG 003530 Fotbalové hřiště Bařiny
G3: Zpět na seznam rozpočtu
A6: Datum | B6: Komentář
A7: Výdaje | B7: pol. 6122 - zavlažovací zařízení

Sheet KomunikaceUdrzba (hidden)
A1: ORG 003520 Komunikace-údržba, oprava
G3: Zpět na seznam rozpočtu
B6: Komentář
A7: Výdaje | B7: pol. 5169 - navýšení z důvodu využívání externích firem pro zimní údržbu, pol. 5171 - běžné opravy+plot u Fanty

Sheet TechSprava (hidden)
A1: ORG 003510 Oddělení technické správy
G3: Zpět na seznam rozpočtu
A6: Datum | B6: Komentář
A7: Výdaje | B7: Mzdové náklady rozpočtovány na plný stav zaměstnanců TS. Pol. 6122 - 500.000 Kč CUBOTA, 200.000 Kč pařezová fréza, 30.000 křovinořez
A8: Příjmy | B8: pol. 3113 -plánovaný prodej šípové radlice, pol. 4116 zatím nulová - není uzavřena smlouva na VPP s Úřadem práce

Sheet DDM (hidden)
A1: ORG 003500 DDM-Dům dětí a mládeže
G3: Zpět na seznam rozpočtu
B6: Komentář
A7: Výdaje | B7: pol. 5171 - zaslepení kanalizace v suterénu, nadstřešení vstupu a oplechování

Sheet Pohrebnictvi (hidden)
A1: ORG 003420 Pohřebnictví
G3: Zpět na seznam rozpočtu
B6: Komentář
A7: Příjmy | B7: Předpoklad uzavření 163 nájemních smluv na další období, kterým v roce 2020 vyprší lhůta

Sheet Pozemky (hidden)
A1: ORG 003400 Pozemky-nájem,nákup
G3: Zpět na seznam rozpočtu
B6: Komentář
A7: Výdaje | B7: pol. 6130 - koupě pozemků p.č. 1400/3 a 2157/1 - komunikace Libotín (Vozáková Jana)

Sheet ZachovnaUdrzba (hidden)
A1: ORG 003360 Záchovná údržba-Městská památková rezervace
G3: Zpět na seznam rozpočtu
B6: Komentář
A7: Výdaje | B7: Celková obnova věže Trúba

Sheet KanalizaceLibotin (hidden)
A1: ORG 003219 Projekt-Kanalizace Libotín
G3: Zpět na seznam rozpočtu
B6: Komentář
A7: Výdaje | B7: DPH za 4.čtvrtletí 2019, VŘ na provozovatele, autorský dozor, management projektu
A8: Příjmy | B8: Vzhledem k tomu, že k dnešnímu dni není vydána smlouva, počítáme s ŽoP až v roce 2020

Sheet VodovodLibotin (hidden)
A1: ORG 003218 Projekt-Vodovod Libotín
G3: Zpět na seznam rozpočtu
B6: Komentář
A7: Výdaje | B7: DPH za 4. čtvrtletí, VŘ na provozovatele, autorský dozor, management projektu

Sheet EnNarocnostMURadniceKD (hidden)
A1: ORG 003214 Projekt-Snížení en.nároč.veř.budov - MÚ, Radnice, KD
G3: Zpět na seznam rozpočtu
B6: Komentář
A7: Výdaje | B7: management projektu

Sheet KD (hidden)
A1: ORG 002490 Kulturní dům
G3: Zpět na seznam rozpočtu
A6: Datum | B6: Komentář
A7: Výdaje | B7: pol. 5137 - pořízení nových stohovatelných stolů do sálu KD, pořízení nového mobilního ozvučení pro potřeby kulturních programů (vystoupení na Trúbě, Národním sadu, amfiteátru, …) - doporučeno komisí kultury, CR, propagace a služeb

Sheet MestskaKnihovna (hidden)
A1: ORG 002460 Městská knihovna
G3: Zpět na seznam rozpočtu
B6: Komentář
A7: Výdaje | B7: pol. 5172 - nový knihovnický systém. Současný systém Clavius - vývoj pozastaven

Sheet Kino (hidden)
A1: ORG 002450 Kino
G3: Zpět na seznam rozpočtu
B6: Komentář
A7: Výdaje | B7: pol. 6122 - nové promítací plátno

Sheet MZB (hidden)
A1: ORG 002470 Muzeum Zdeňka Buriana
G3: Zpět na seznam rozpočtu
B6: Komentář
A7: Výdaje | B7: pol. 6122 - zabezpečovací systém, turniket a pokladní automat, pol. 5137 - závěsný systém pro obrazy

Sheet Propagace (hidden)
A1: ORG 002320 Propagace
G3: Zpět na seznam rozpočtu
B6: Komentář
A7: Výdaje | B7: Do pol 5169 zahrnuta navíc částka 90 tis.Kč na provedení analýzy návštěvnosti, která by měla být výchozím podkladem pro vytvoření koncepce CR - doporučeno komisí kultury, CR, propagace a služeb a 21 tis.Kč navýšení -Lašská brána Beskyd (smlouva o spolupráci)

Sheet MIC (hidden)
A1: ORG 002310 MIC (Městské informační centrum)
G3: Zpět na seznam rozpočtu
B6: Komentář
A7: Výdaje | B7: Pol. 6122 - pořízení informačního kiosku (v souladu s akčním plánem

Sheet DobyvaciCinnost (hidden)
A1: ORG 002000 Úhrady za dobývací činnost
G3: Zpět na seznam rozpočtu
A6: Komentář
A7: Výdaje | B7: Výdajová položka odpovídá vyfakturované částce (od uzavření dohody) firmě LB Cemix za odstřely navýšená o stejnou částku - podílu města
